bitfinex/quotes_BTCUSD_20250614
["timestamp","ask_amount","ask_price","bid_price","bid_amount"]
[1749864745170,0.90765187,105590.0,105580.0,0.006]
[1749864745395,0.90765187,105590.0,105580.0,0.01265246]
[1749864745638,0.90765187,105590.0,105580.0,0.006]
[1749864746091,5.84540687,105590.0,105580.0,0.006]
[1749864746316,5.86792062,105590.0,105580.0,0.006]
[1749864746754,5.97870323,105590.0,105580.0,0.006]
[1749864747246,5.97870323,105590.0,105580.0,0.002]
[1749864747462,0.2273572,105560.0,105550.0,0.4586036]
[1749864747673,0.2677172,105560.0,105550.0,0.56149897]
[1749864747878,0.2677172,105560.0,105550.0,0.55484536]
[1749864748095,0.2677172,105560.0,105550.0,0.56149897]
[1749864748346,0.25824473,105560.0,105550.0,0.52473811]
[1749864748549,0.25824473,105560.0,105550.0,0.53999415]
[1749864748762,0.25924473,105560.0,105550.0,0.53999401]
[1749864748991,0.25924473,105560.0,105550.0,0.54281436]
[1749864749209,0.25924473,105560.0,105550.0,0.54946778]
[1749864749664,0.25924473,105560.0,105550.0,0.60128479]
[1749864749863,0.07077903,105560.0,105550.0,0.61957874]
[1749864750083,0.03041885,105560.0,105550.0,0.62623168]
[1749864750309,0.26971828,105560.0,105550.0,0.59781076]
[1749864750526,0.26971828,105560.0,105550.0,0.59781112]
[1749864750738,0.26024527,105560.0,105550.0,0.53652033]
[1749864750994,0.26024527,105560.0,105550.0,0.5488149]
[1749864751442,0.26024527,105560.0,105550.0,0.55546842]
[1749864751894,0.26024527,105560.0,105550.0,0.55828881]
[1749864752139,0.26024527,105560.0,105550.0,0.55546842]
[1749864752368,0.26024527,105560.0,105550.0,0.56776263]
[1749864752592,0.26024527,105560.0,105550.0,0.64985989]
[1749864753241,0.26024527,105560.0,105550.0,0.63091234]
[1749864753462,0.25077217,105560.0,105550.0,0.55546805]
[1749864753675,0.25077217,105560.0,105550.0,0.55544133]
[1749864753915,0.25077217,105560.0,105550.0,0.55544131]
[1749864754136,0.25077217,105560.0,105550.0,0.56491513]
[1749864754352,0.25077217,105560.0,105550.0,0.57375066]
[1749864754620,0.25077217,105560.0,105550.0,0.55765016]
[1749864754862,0.25077217,105560.0,105550.0,0.6248478]
[1749864755087,0.25077217,105560.0,105550.0,0.62200073]
[1749864755295,0.24129898,105560.0,105550.0,0.63019815]
[1749864755955,0.2318257,105560.0,105550.0,0.20832319]
[1749864756169,0.2318257,105560.0,105550.0,0.50576308]
[1749864756407,0.2318257,105560.0,105550.0,0.34837943]
[1749864756621,0.2318257,105560.0,105550.0,0.55396391]
[1749864756842,0.2318257,105560.0,105550.0,0.59122066]
[1749864756843,0.002,105560.0,105550.0,0.59122066]
[1749864757064,0.002,105560.0,105550.0,0.67812801]
[1749864757281,0.002,105560.0,105550.0,0.64499444]
[1749864757497,0.0426,105560.0,105550.0,0.66929134]
[1749864757717,0.0426,105560.0,105550.0,0.6692912]
[1749864758139,0.0426,105560.0,105550.0,0.66929118]
[1749864758863,0.0426,105560.0,105550.0,0.6626648]
[1749864759077,0.0426,105560.0,105550.0,0.65162012]
[1749864759295,0.0426,105560.0,105550.0,0.66928918]
[1749864759512,0.0426,105560.0,105550.0,0.65162023]
[1749864759747,0.0426,105560.0,105550.0,0.65162022]
[1749864759976,0.0426,105560.0,105550.0,0.65162021]
[1749864761063,0.0426,105560.0,105550.0,0.64499444]
[1749864761284,0.0426,105560.0,105550.0,0.65162021]
[1749864761738,0.0426,105560.0,105550.0,0.6516201]
[1749864761950,0.0426,105560.0,105550.0,0.65162014]
[1749864762212,0.0426,105560.0,105550.0,0.65162015]
[1749864762454,0.0426,105560.0,105550.0,0.65162016]
[1749864763237,0.0426,105560.0,105550.0,0.64499444]
[1749864763454,0.0426,105560.0,105550.0,0.65162016]
[1749864763910,0.002,105560.0,105550.0,0.64499444]
[1749864764129,0.0426,105560.0,105550.0,0.65162016]
[1749864764346,0.20400961,105590.0,105580.0,0.19890112]
[1749864764568,0.00947005,105590.0,105580.0,0.58486699]
[1749864764834,0.00946951,105600.0,105590.0,0.28382256]
[1749864765060,0.00946951,105600.0,105590.0,0.37059382]
[1749864765061,0.05953848,105600.0,105590.0,0.37059382]
[1749864765304,0.20833268,105600.0,105590.0,0.28565363]
[1749864765518,0.6031516,105600.0,105590.0,0.10571235]
[1749864765737,0.57946344,105600.0,105590.0,0.26195235]
[1749864766168,0.57951118,105600.0,105590.0,0.26195235]
[1749864766396,0.57951118,105600.0,105590.0,0.25248176]
[1749864766603,0.57951118,105600.0,105590.0,0.26195235]
[1749864767025,0.57951118,105600.0,105590.0,0.25248176]
[1749864767764,0.59051118,105600.0,105590.0,0.25244176]
[1749864767970,0.60651118,105600.0,105590.0,0.25344176]
[1749864768404,0.59051118,105600.0,105590.0,0.26191235]
[1749864768836,0.59851118,105600.0,105590.0,0.26291235]
[1749864769041,0.61301116,105600.0,105590.0,0.25344176]
[1749864769250,0.59851118,105600.0,105590.0,0.25344176]
[1749864770136,0.59851118,105600.0,105590.0,0.50245134]
[1749864770343,0.59851118,105600.0,105590.0,0.26291235]
[1749864770998,0.59851118,105600.0,105590.0,0.26287235]
[1749864771599,0.59851118,105600.0,105590.0,0.25340176]
[1749864772020,0.58904167,105600.0,105590.0,0.25340176]
[1749864772226,0.60360634,105600.0,105590.0,0.25340176]
[1749864772855,0.60360634,105600.0,105590.0,0.09724176]
[1749864773068,0.66640634,105600.0,105590.0,0.001]
[1749864776878,0.45901274,105600.0,105590.0,0.001]
[1749864777290,0.64840667,105600.0,105590.0,0.001]
[1749864781715,0.58560667,105600.0,105590.0,0.001]
[1749864782195,0.54500667,105600.0,105590.0,0.001]
[1749864782393,0.58560667,105600.0,105590.0,0.001]
[1749864783443,0.64930667,105600.0,105590.0,0.001]
[1749864784496,0.54500667,105600.0,105590.0,0.19041187]
[1749864784701,0.58584667,105600.0,105590.0,0.42612215]
[1749864785368,0.58584667,105600.0,105590.0,0.41665174]
[1749864785882,0.58584667,105600.0,105590.0,0.21776937]
[1749864786547,0.58584667,105600.0,105590.0,0.42612233]
[1749864786745,0.58584667,105600.0,105590.0,0.43559274]
[1749864786967,0.53991151,105600.0,105590.0,0.43559274]
[1749864787174,0.36945579,105600.0,105590.0,0.45453293]
[1749864787384,0.05692506,105600.0,105590.0,0.45453293]
[1749864787591,0.09776506,105600.0,105590.0,0.45453293]
[1749864788527,0.28715899,105600.0,105590.0,0.44506297]
[1749864788741,0.28715899,105600.0,105590.0,0.45453257]
[1749864788995,0.27769002,105600.0,105590.0,0.37726477]
[1749864789242,0.25875127,105600.0,105590.0,0.09724176]
[1749864789934,0.25875127,105600.0,105590.0,0.26275235]
[1749864790172,0.25875127,105600.0,105590.0,0.46163472]
[1749864790367,0.24928167,105600.0,105590.0,0.49273472]
[1749864790867,0.24928167,105600.0,105590.0,0.48326422]
[1749864791073,0.24928167,105600.0,105590.0,0.28438176]
[1749864791291,0.24928167,105600.0,105590.0,0.25116176]
[1749864791513,0.24928167,105600.0,105590.0,0.45004422]
[1749864791723,0.24928167,105600.0,105590.0,0.45951472]
[1749864792377,0.24928167,105600.0,105590.0,0.25116176]
[1749864792848,0.24928167,105600.0,105590.0,0.45004413]
[1749864794581,0.24928167,105600.0,105590.0,0.25116176]
[1749864795701,0.24928167,105600.0,105590.0,0.29193235]
[1749864795912,0.24928167,105600.0,105590.0,0.48134422]
[1749864796120,0.24928167,105600.0,105590.0,0.28246176]
[1749864796779,0.24928167,105600.0,105590.0,0.25116176]
[1749864797418,0.24928167,105600.0,105580.0,0.28024199]
[1749864797419,0.19888228,105590.0,105580.0,0.0624]
[1749864797633,0.2083526,105590.0,105580.0,0.25216176]
[1749864797860,0.19888228,105590.0,105580.0,0.25216176]
[1749864798075,0.19888228,105590.0,105580.0,0.26163325]
[1749864798285,0.19888228,105590.0,105580.0,0.50130568]
[1749864798495,0.19888228,105590.0,105580.0,0.59888207]
[1749864798743,0.19888228,105590.0,105580.0,0.58941094]
[1749864798950,0.19888228,105590.0,105580.0,0.59041094]
[1749864799397,0.19888228,105590.0,105580.0,0.58093972]
[1749864799616,0.19888228,105590.0,105580.0,0.59041085]
[1749864799824,0.19888228,105590.0,105580.0,0.58093972]
[1749864800044,0.18941187,105590.0,105580.0,0.58093972]
[1749864800261,0.18941187,105590.0,105580.0,0.38203851]
[1749864800577,0.18941187,105590.0,105580.0,0.37256702]
[1749864801080,0.18941187,105590.0,105580.0,0.12854176]
[1749864801314,0.18941187,105590.0,105580.0,0.28446176]
[1749864801541,0.18941187,105590.0,105580.0,0.09724176]
[1749864801785,0.18941187,105590.0,105580.0,0.25324176]
[1749864802882,0.59181187,105590.0,105580.0,0.001]
[1749864803125,0.59181187,105590.0,105580.0,0.15696]
[1749864803351,0.59181187,105590.0,105580.0,0.001]
[1749864803783,0.59181187,105590.0,105580.0,0.01874578]
[1749864804211,0.59181187,105590.0,105580.0,0.001]
[1749864804451,0.59181187,105590.0,105580.0,0.01874615]
[1749864804666,0.59181187,105590.0,105580.0,0.01874616]
[1749864805593,0.59181187,105590.0,105580.0,0.02762002]
[1749864806089,0.59181187,105590.0,105580.0,0.0098734]
[1749864807234,0.59181187,105590.0,105580.0,0.001]
[1749864807440,0.59181187,105590.0,105580.0,0.00987341]
[1749864809133,0.59181187,105590.0,105580.0,0.02762023]
[1749864809336,0.57025187,105590.0,105580.0,0.02762005]
[1749864809642,0.57025187,105590.0,105580.0,0.07655695]
[1749864809848,0.57025187,105590.0,105580.0,0.0765568]
[1749864810269,0.57025187,105590.0,105580.0,0.0454568]
[1749864810482,0.57025187,105590.0,105580.0,0.04545681]
[1749864810698,0.57025187,105590.0,105580.0,0.04545685]
[1749864810913,0.52941187,105590.0,105580.0,0.37588271]
[1749864811131,0.57025187,105590.0,105580.0,0.4030992]
[1749864811340,0.57972237,105590.0,105580.0,0.4220417]
[1749864811562,0.57972237,105590.0,105580.0,0.5777617]
[1749864811776,0.5483526,105590.0,105580.0,0.58723246]
[1749864812001,0.06925033,105590.0,105580.0,0.59670248]
[1749864812211,0.06925033,105590.0,105580.0,0.59670231]
[1749864812422,0.07872074,105590.0,105580.0,0.59670231]
[1749864812917,0.06925033,105590.0,105580.0,0.60557415]
[1749864813162,0.05978001,105590.0,105580.0,0.60557336]
[1749864813375,0.03788074,105590.0,105580.0,0.59670176]
[1749864813595,0.03788074,105590.0,105580.0,0.60557336]
[1749864813596,0.02841024,105590.0,105580.0,0.60557336]
[1749864813808,0.07872065,105590.0,105580.0,0.5878301]
[1749864814020,0.07872065,105590.0,105580.0,0.6055732]
[1749864814437,0.05978001,105590.0,105580.0,0.59670165]
[1749864814647,0.05978001,105590.0,105580.0,0.6055732]
[1749864814851,0.05022996,105590.0,105580.0,0.5878285]
[1749864815060,0.0597001,105590.0,105580.0,0.59669842]
[1749864815270,0.05970001,105590.0,105580.0,0.58782848]
[1749864815485,0.05970001,105590.0,105580.0,0.6055684]
[1749864815940,0.06917024,105590.0,105580.0,0.60556834]
[1749864816136,0.05970001,105590.0,105580.0,0.60556834]
[1749864816340,0.05970001,105590.0,105580.0,0.59669841]
[1749864816549,0.05970001,105590.0,105580.0,0.60557145]
[1749864816762,0.05970001,105590.0,105580.0,0.55941549]
[1749864816763,0.00946978,105590.0,105580.0,0.55941549]
[1749864816985,0.36845582,105600.0,105590.0,0.29199279]
[1749864817224,0.59860975,105600.0,105590.0,0.4850956]
[1749864817431,0.40921582,105600.0,105590.0,0.41544672]
[1749864817639,0.40921582,105600.0,105590.0,0.41544655]
[1749864817848,0.40921582,105600.0,105590.0,0.40597659]
[1749864818053,0.40921582,105600.0,105590.0,0.38823482]
[1749864818265,0.37645582,105600.0,105590.0,0.40697669]
[1749864818483,0.62707935,105600.0,105590.0,0.38803641]
[1749864818687,0.62707935,105600.0,105590.0,0.37976477]
[1749864818884,0.62707935,105600.0,105590.0,0.39750655]
[1749864819316,0.62707935,105600.0,105590.0,0.37976477]
[1749864819542,0.63654904,105600.0,105590.0,0.40697669]
[1749864819762,0.62707989,105600.0,105590.0,0.39750655]
[1749864819978,0.62707989,105600.0,105590.0,0.40697668]
[1749864820192,0.62707989,105600.0,105590.0,0.40697669]
[1749864820417,0.62707989,105600.0,105590.0,0.40697668]
[1749864820631,0.62707989,105600.0,105590.0,0.39750654]
[1749864820864,0.62707989,105600.0,105590.0,0.37976477]
[1749864821078,0.61761047,105600.0,105590.0,0.38803631]
[1749864821278,0.61761047,105600.0,105590.0,0.39750654]
[1749864821479,0.61761047,105600.0,105590.0,0.37976477]
[1749864821689,0.61761047,105600.0,105590.0,0.39750655]
[1749864821893,0.61761047,105600.0,105590.0,0.37976477]
[1749864822125,0.61761047,105600.0,105590.0,0.39750655]
[1749864822341,0.61761047,105600.0,105590.0,0.37029454]
[1749864822556,0.61761047,105600.0,105590.0,0.37976477]
[1749864822765,0.61761047,105600.0,105590.0,0.40697668]
[1749864822986,0.61761047,105600.0,105590.0,0.39750655]
[1749864823756,0.57685047,105600.0,105590.0,0.39750673]
[1749864823967,0.61761047,105600.0,105590.0,0.37976495]
[1749864824179,0.61761047,105600.0,105590.0,0.39750673]
[1749864824390,0.61761047,105600.0,105590.0,0.39750726]
[1749864824915,0.61761047,105600.0,105590.0,0.38803703]
[1749864825126,0.66477136,105600.0,105590.0,0.15656]
[1749864825335,0.66477136,105600.0,105590.0,0.18317519]
[1749864825547,0.66477136,105600.0,105590.0,0.18317511]
[1749864825760,0.66477136,105600.0,105590.0,0.18317514]
[1749864825988,0.66477136,105600.0,105590.0,0.15656]
[1749864826188,0.66477136,105600.0,105590.0,0.16543179]
[1749864826417,0.66477136,105600.0,105590.0,0.17430359]
[1749864826633,0.66477136,105600.0,105590.0,0.16543182]
[1749864826867,0.66477136,105600.0,105590.0,0.15656]
[1749864827091,0.59867136,105600.0,105590.0,0.1967816]
[1749864827320,0.59867136,105600.0,105590.0,0.22339592]
[1749864827553,0.59867136,105600.0,105590.0,0.1831743]
[1749864827761,0.59867136,105600.0,105590.0,0.18317455]
[1749864828464,0.59867136,105600.0,105590.0,0.17430309]
[1749864828674,0.59867136,105600.0,105590.0,0.16542859]
[1749864828887,0.59867136,105600.0,105590.0,0.19583153]
[1749864829107,0.55791136,105600.0,105590.0,0.53062721]
[1749864829321,0.56738015,105600.0,105590.0,0.57969227]
[1749864829530,0.59867127,105600.0,105590.0,0.5702216]
[1749864829964,0.59867127,105600.0,105590.0,0.57022198]
[1749864830178,0.59867127,105600.0,105590.0,0.5400974]
[1749864830360,0.58920167,105600.0,105590.0,0.53122612]
[1749864830600,0.58920167,105600.0,105590.0,0.34121504]
[1749864830808,0.58920167,105600.0,105590.0,0.32347235]
[1749864831025,0.58920167,105600.0,105590.0,0.35008646]
[1749864831234,0.58920167,105600.0,105590.0,0.54009741]
[1749864831471,0.58920167,105600.0,105590.0,0.54896868]
[1749864831684,0.58920167,105600.0,105590.0,0.54896865]
[1749864831893,0.58920167,105600.0,105590.0,0.52235472]
[1749864832103,0.58920167,105600.0,105590.0,0.53122605]
[1749864832310,0.58920167,105600.0,105590.0,0.52235472]
[1749864832550,0.58920167,105600.0,105590.0,0.54897883]
[1749864832736,0.58920167,105600.0,105590.0,0.5312294]
[1749864832979,0.58920167,105600.0,105590.0,0.54010415]
[1749864833198,0.58920167,105600.0,105590.0,0.53122949]
[1749864833409,0.58920167,105600.0,105590.0,0.54010427]
[1749864833616,0.58920167,105600.0,105590.0,0.54010428]
[1749864833831,0.58920167,105600.0,105590.0,0.52235472]
[1749864834048,0.58920167,105600.0,105590.0,0.54010417]
[1749864834265,0.58920167,105600.0,105590.0,0.53063367]
[1749864834470,0.58920167,105600.0,105590.0,0.5395084]
[1749864834679,0.58920167,105600.0,105590.0,0.5217589]
[1749864834914,0.58920167,105600.0,105590.0,0.53950826]
[1749864835136,0.58920167,105600.0,105590.0,0.53950848]
[1749864835346,0.58920167,105600.0,105590.0,0.3500969]
[1749864835553,0.58920167,105600.0,105590.0,0.34122204]
[1749864835758,0.58920167,105600.0,105590.0,0.52235472]
[1749864835967,0.58920167,105600.0,105590.0,0.54897886]
[1749864836202,0.58920167,105600.0,105590.0,0.54897902]
[1749864836410,0.58920167,105600.0,105590.0,0.53950869]
[1749864836632,0.58920167,105600.0,105590.0,0.34062621]
[1749864836844,0.58920167,105600.0,105590.0,0.31929687]
[1749864837080,0.58920167,105600.0,105590.0,0.50870842]
[1749864837927,0.58920167,105600.0,105590.0,0.29267235]
[1749864838146,0.58920167,105600.0,105590.0,0.31929655]
[1749864838353,0.58920167,105600.0,105590.0,0.31929687]
[1749864838566,0.58920167,105600.0,105590.0,0.31929677]
[1749864838781,0.58920167,105600.0,105590.0,0.31929676]
[1749864838994,0.58920167,105600.0,105590.0,0.29267235]
[1749864839219,0.58920167,105600.0,105590.0,0.30982608]
[1749864839443,0.58920167,105600.0,105590.0,0.30982606]
[1749864839861,0.58920167,105600.0,105590.0,0.12764176]
[1749864840085,0.65120167,105600.0,105590.0,0.18430449]
[1749864840532,0.65120167,105600.0,105590.0,0.16655484]
[1749864841174,0.58920167,105600.0,105590.0,0.16655484]
[1749864841434,0.58920167,105600.0,105590.0,0.16655477]
[1749864841636,0.58920167,105600.0,105590.0,0.16655491]
[1749864841863,0.58920167,105600.0,105590.0,0.16655492]
[1749864842091,0.58920167,105600.0,105590.0,0.2122717]
[1749864842303,0.58920167,105600.0,105590.0,0.2122715]
[1749864842539,0.58920167,105600.0,105590.0,0.15768]
[1749864842998,0.58920167,105600.0,105590.0,0.16655555]
[1749864843194,0.58920167,105600.0,105590.0,0.15768]
[1749864843419,0.58920167,105600.0,105590.0,0.18818]
[1749864843848,0.58920167,105600.0,105590.0,0.19705551]
[1749864844049,0.58920167,105600.0,105590.0,0.18818]
[1749864844492,0.05980774,105600.0,105590.0,0.57564743]
[1749864844707,0.05980774,105600.0,105590.0,0.5845226]
[1749864844919,0.06108774,105600.0,105590.0,0.57564743]
[1749864845141,0.07055671,105600.0,105590.0,0.57564743]
[1749864845365,0.06108774,105600.0,105590.0,0.57564743]
[1749864845587,0.06108774,105600.0,105590.0,0.58450405]
[1749864846033,0.06104774,105600.0,105590.0,0.57564743]
[1749864846250,0.06104774,105600.0,105590.0,0.58450398]
[1749864846523,0.06104774,105600.0,105590.0,0.57564743]
[1749864847431,0.01904774,105600.0,105590.0,0.57564743]
[1749864847888,4.774e-05,105600.0,105590.0,0.57464743]
[1749864848769,4.774e-05,105600.0,105590.0,0.59159047]
[1749864848983,4.774e-05,105600.0,105590.0,0.57389189]
[1749864849415,4.774e-05,105600.0,105590.0,0.59159048]
[1749864849848,4.774e-05,105600.0,105590.0,0.57389189]
[1749864850276,0.27276,105620.0,105610.0,0.28068132]
[1749864850482,0.31476,105620.0,105610.0,0.60148148]
[1749864850704,0.27276,105620.0,105610.0,0.60148148]
[1749864850904,0.31476,105620.0,105610.0,0.60148148]
[1749864851112,0.31480773,105620.0,105610.0,0.60148148]
[1749864851548,0.33180773,105620.0,105610.0,0.58478289]
[1749864851751,0.33180773,105620.0,105610.0,0.60247977]
[1749864851957,0.31480773,105620.0,105610.0,0.60547977]
[1749864852192,0.27280773,105620.0,105610.0,0.58778289]
[1749864852413,0.31480773,105620.0,105610.0,0.6084798]
[1749864852612,0.27280773,105620.0,105610.0,0.60847876]
[1749864852819,0.27280773,105620.0,105610.0,0.60847856]
[1749864853284,0.27280773,105620.0,105610.0,0.62301941]
[1749864853510,0.047,105630.0,105620.0,0.28156069]
[1749864853729,0.0564662,105630.0,105620.0,0.47871836]
[1749864853945,0.047,105630.0,105620.0,0.46102347]
[1749864854214,0.047,105630.0,105620.0,0.47871834]
[1749864854425,0.047,105630.0,105620.0,0.47871832]
[1749864854854,0.047,105630.0,105620.0,0.47871835]
[1749864855081,0.0564662,105630.0,105620.0,0.48071831]
[1749864855302,0.0564662,105630.0,105620.0,0.46502347]
[1749864855541,0.047,105630.0,105620.0,0.48271832]
[1749864855755,0.047,105630.0,105620.0,0.46502347]
[1749864855960,0.047,105630.0,105620.0,0.48271832]
[1749864856222,0.047,105630.0,105620.0,0.46502347]
[1749864856434,0.047,105630.0,105620.0,0.48271835]
[1749864856873,0.047,105630.0,105620.0,0.46502347]
[1749864857085,0.047,105630.0,105620.0,0.48271834]
[1749864857298,0.047,105630.0,105620.0,0.46442347]
[1749864857505,0.047,105630.0,105620.0,0.48211833]
[1749864857715,0.047,105630.0,105620.0,0.46442347]
[1749864860246,0.047,105630.0,105620.0,0.37233518]
[1749864860458,0.07539966,105630.0,105620.0,0.47580245]
[1749864860690,0.2647398,105630.0,105620.0,0.29906764]
[1749864860900,0.07539966,105630.0,105620.0,0.47580245]
[1749864861119,0.07539957,105630.0,105620.0,0.47580245]
[1749864861348,0.08486639,105630.0,105620.0,0.47580245]
[1749864861553,0.09433339,105630.0,105620.0,0.47580263]
[1749864861812,0.07539957,105630.0,105620.0,0.4852699]
[1749864862021,0.08486639,105630.0,105620.0,0.4852699]
[1749864862647,0.07539957,105630.0,105620.0,0.4852699]
[1749864862895,0.08486657,105630.0,105620.0,0.47580263]
[1749864863133,0.08486639,105630.0,105620.0,0.4852699]
[1749864864404,0.05646629,105630.0,105620.0,0.4852699]
[1749864864603,0.05646629,105630.0,105620.0,0.62609438]
[1749864864782,0.047,105630.0,105620.0,0.62609438]
[1749864864985,0.047,105630.0,105620.0,0.62597438]
[1749864864986,0.05646629,105630.0,105620.0,0.62597438]
[1749864865187,0.05646629,105630.0,105620.0,0.5498499]
[1749864865428,0.31717351,105630.0,105620.0,0.10024176]
[1749864865623,0.65717351,105630.0,105620.0,0.004]
[1749864866353,0.61517351,105630.0,105620.0,0.16176]
[1749864866560,0.65717351,105630.0,105620.0,0.15976]
[1749864866834,0.65717351,105630.0,105620.0,0.15776]
[1749864867030,0.20829297,105620.0,105610.0,0.37558016]
[1749864867231,0.20829297,105620.0,105610.0,0.47182192]
[1749864867655,0.23669586,105620.0,105610.0,0.48129018]
[1749864867869,0.03786989,105620.0,105610.0,0.49075835]
[1749864868077,0.07986989,105620.0,105610.0,0.49075835]
[1749864868282,0.07986989,105620.0,105610.0,0.49475835]
[1749864868492,0.08933779,105620.0,105610.0,0.52765835]
[1749864869021,0.08933779,105620.0,105610.0,0.58775364]
[1749864869452,0.08933779,105620.0,105610.0,0.55485364]
[1749864869857,0.03786989,105620.0,105610.0,0.55485364]
[1749864870080,0.07986989,105620.0,105610.0,0.55485364]
[1749864870644,0.26922796,105620.0,105610.0,0.54538547]
[1749864870854,0.26922796,105620.0,105610.0,0.53591721]
[1749864871065,0.26922796,105620.0,105610.0,0.54538547]
[1749864871359,0.26922796,105620.0,105610.0,0.55485364]
[1749864871927,0.26922796,105620.0,105610.0,0.53591721]
[1749864873255,0.25029351,105620.0,105610.0,0.45688531]
[1749864873480,0.25029351,105620.0,105610.0,0.47582246]
[1749864873691,0.25029351,105620.0,105610.0,0.48529081]
[1749864874584,0.25029351,105620.0,105610.0,0.46635402]
[1749864874808,0.25029351,105620.0,105610.0,0.47582264]
[1749864875034,0.25029351,105620.0,105610.0,0.33695961]
[1749864875292,0.64532588,105620.0,105610.0,0.004]
[1749864875522,0.64532588,105620.0,105610.0,0.16148]
[1749864875966,0.64532588,105620.0,105610.0,0.004]
[1749864877379,1.13442588,105620.0,105610.0,0.004]
[1749864877616,1.16286088,105620.0,105610.0,0.004]
[1749864879997,1.13442588,105620.0,105610.0,0.004]
[1749864880853,6.07218088,105620.0,105610.0,0.004]
[1749864883230,6.10061688,105620.0,105610.0,0.004]
[1749864883452,5.61151688,105620.0,105610.0,0.004]
[1749864888048,5.88423688,105620.0,105610.0,0.004]
[1749864892621,6.05746836,105620.0,105610.0,0.004]
[1749864892844,6.08552039,105620.0,105610.0,0.004]
[1749864893060,6.08552039,105620.0,105610.0,0.002]
[1749864893300,5.91966147,105620.0,105610.0,0.003]
[1749864893530,0.98190647,105620.0,105610.0,0.001]
[1749864893796,5.91966147,105620.0,105610.0,0.001]
[1749864894039,0.20837216,105580.0,105570.0,0.0631]
[1749864894262,0.25013216,105580.0,105570.0,0.1546193]
[1749864894468,0.25013216,105580.0,105570.0,0.13693281]
[1749864894689,0.25013216,105580.0,105570.0,0.15462009]
[1749864894917,0.20837216,105580.0,105570.0,0.1369332]
[1749864895146,0.25013216,105580.0,105570.0,0.18592063]
[1749864895358,0.60290108,105580.0,105570.0,0.18592063]
[1749864895587,0.60290108,105580.0,105570.0,0.1369332]
[1749864895792,0.60290108,105580.0,105570.0,0.12808949]
[1749864896442,0.60290108,105580.0,105570.0,0.13108949]
[1749864896663,0.60290108,105580.0,105570.0,0.16618949]
[1749864897100,0.60290108,105580.0,105570.0,0.10328949]
[1749864897979,1.09200108,105580.0,105570.0,0.00704773]
[1749864898200,6.09175608,105580.0,105570.0,0.00704773]
[1749864900186,6.04999608,105580.0,105570.0,0.00704773]
[1749864900395,6.09175608,105580.0,105570.0,0.00704773]
[1749864902540,5.60265608,105580.0,105570.0,0.00704773]
[1749864902769,5.73343869,105580.0,105570.0,0.00704773]
[1749864903194,5.75343869,105580.0,105570.0,0.00704773]
[1749864903414,5.75343869,105580.0,105570.0,4.773e-05]
[1749864903415,5.77584838,105580.0,105570.0,4.773e-05]
[1749864903840,5.9328397,105580.0,105570.0,0.00404773]
[1749864904048,5.9328397,105580.0,105570.0,4.773e-05]
[1749864904903,5.7340797,105580.0,105570.0,4.773e-05]
[1749864905149,5.91039869,105580.0,105570.0,4.773e-05]
[1749864905637,5.91739869,105580.0,105570.0,0.00104773]
[1749864906076,5.91739869,105580.0,105570.0,4.773e-05]
[1749864906077,5.71167869,105580.0,105570.0,4.773e-05]
[1749864906306,5.49889608,105580.0,105570.0,4.773e-05]
[1749864906519,5.78873608,105580.0,105570.0,0.00104773]
[1749864906701,5.98753608,105580.0,105570.0,0.00304773]
[1749864906951,6.00349608,105580.0,105570.0,0.00304773]
[1749864907170,5.98649608,105580.0,105570.0,0.00204773]
[1749864907605,5.97049608,105580.0,105570.0,4.773e-05]
[1749864909726,5.97037608,105580.0,105570.0,4.773e-05]
[1749864911141,5.77173608,105580.0,105570.0,4.773e-05]
[1749864911354,5.97037608,105580.0,105570.0,4.773e-05]
[1749864914898,5.97037608,105580.0,105570.0,0.00890451]
[1749864915570,5.97037608,105580.0,105570.0,4.773e-05]
[1749864917095,5.97049608,105580.0,105570.0,0.00890584]
[1749864919231,5.97049608,105580.0,105570.0,4.773e-05]
[1749864919434,5.97049608,105580.0,105570.0,0.00890584]
[1749864919857,5.97049608,105580.0,105570.0,4.773e-05]
[1749864920268,5.97049608,105580.0,105570.0,0.00890584]
[1749864922141,5.97049608,105580.0,105570.0,4.773e-05]
[1749864923646,5.15889608,105580.0,105570.0,0.06194773]
[1749864923863,0.24989216,105580.0,105570.0,0.19095611]
[1749864924070,0.24989216,105580.0,105570.0,0.17102693]
[1749864924282,0.58042112,105580.0,105570.0,0.19095332]
[1749864924495,0.58042112,105580.0,105570.0,0.1847584]
[1749864924697,0.58368864,105580.0,105570.0,0.18316039]
[1749864924910,0.58368864,105580.0,105570.0,0.17368807]
[1749864925122,0.54216864,105580.0,105570.0,0.19140149]
[1749864925335,0.58368864,105580.0,105570.0,0.19140153]
[1749864925544,0.58368864,105580.0,105570.0,0.0332601]
[1749864925752,0.58368864,105580.0,105570.0,0.01556387]
[1749864925753,5.67864364,105580.0,105570.0,0.01556387]
[1749864925955,5.67864364,105580.0,105570.0,0.0333129]
[1749864926169,5.67864364,105580.0,105570.0,0.02667043]
[1749864926380,5.67864364,105580.0,105570.0,0.02667084]
[1749864926589,5.74234364,105580.0,105570.0,0.02667084]
[1749864926789,5.74234364,105580.0,105570.0,0.02667185]
[1749864927198,5.76481053,105580.0,105570.0,0.02667185]
[1749864927409,5.76481053,105580.0,105570.0,0.02667465]
[1749864927625,5.76481053,105580.0,105570.0,0.02667884]
[1749864927838,5.76481053,105580.0,105570.0,0.00892479]
[1749864928045,5.56609053,105580.0,105570.0,0.00892479]
[1749864928247,5.76481053,105580.0,105570.0,0.00892484]
[1749864928604,5.76481053,105580.0,105570.0,0.00892494]
[1749864928804,5.76481053,105580.0,105570.0,4.773e-05]
[1749864929607,5.76481053,105580.0,105570.0,0.00892494]
[1749864930056,5.76481053,105580.0,105570.0,4.773e-05]
[1749864930270,5.76481053,105580.0,105570.0,0.00892494]
[1749864930715,5.76481053,105580.0,105570.0,4.773e-05]
[1749864931535,5.76481053,105580.0,105570.0,0.00892494]
[1749864931742,0.82705553,105580.0,105570.0,4.773e-05]
[1749864931965,5.76481053,105580.0,105570.0,4.773e-05]
[1749864932379,5.76481053,105580.0,105570.0,0.00892506]
[1749864932585,5.76481053,105580.0,105570.0,4.773e-05]
[1749864932795,5.76481053,105580.0,105570.0,0.00892507]
[1749864933016,5.76481053,105580.0,105570.0,4.773e-05]
[1749864933237,5.76481053,105580.0,105570.0,0.00892507]
[1749864933674,5.76481053,105580.0,105570.0,4.773e-05]
[1749864934350,5.57651053,105580.0,105570.0,4.773e-05]
[1749864934565,5.70087053,105580.0,105570.0,4.773e-05]
[1749864936038,5.97371053,105580.0,105570.0,4.773e-05]
[1749864937331,5.97371053,105580.0,105570.0,0.00892709]
[1749864937574,5.98471053,105580.0,105570.0,0.00892709]
[1749864937790,1.13195553,105580.0,105570.0,0.00104773]
[1749864938005,6.06971053,105580.0,105570.0,0.00104773]
[1749864943451,5.91275053,105580.0,105570.0,0.00104773]
[1749864943665,6.06959053,105580.0,105570.0,0.00104773]
[1749864944577,6.09803953,105580.0,105570.0,0.00104773]
[1749864945024,6.07393953,105580.0,105570.0,0.00104773]